fUST/lending_fUST_20250615
["ID","MTS","AMOUNT","RATE_DAILY","PERIOD"]
[365821927,1749939034737,-460.0,0.00021917,4]
[365821928,1749939034751,-400.0,0.00021917,4]
[365821929,1749939034765,-460.0,0.00021917,4]
[365821930,1749939034779,-400.56414882,0.00021917,4]
[365821931,1749939034794,-460.0,0.00021917,4]
[365821932,1749939034808,-460.0,0.00021917,4]
[365821933,1749939034821,-450.93583068,0.00021917,4]
[365821934,1749939034834,-460.0,0.00021917,4]
[365821935,1749939034847,-548.72822571,0.00021917,4]
[365821936,1749939034860,-460.0,0.00021917,4]
[365821937,1749939034872,-470.0,0.00021917,4]
[365821938,1749939034884,-460.0,0.00021917,4]
[365821939,1749939034896,-505.29982678,0.00021917,2]
[365821940,1749939034908,-460.0,0.00021917,4]
[365821941,1749939034919,-460.0,0.00021917,4]
[365821942,1749939034932,-605.94844485,0.00021917,4]
[365821943,1749939034944,-403.04098781,0.00021917,4]
[365821944,1749939034955,-460.0,0.00021917,4]
[365821945,1749939034967,-430.0,0.00021917,4]
[365821946,1749939034978,-460.0,0.00021917,4]
[365821947,1749939034990,-460.0,0.00021917,4]
[365821948,1749939035002,-460.0,0.00021917,4]
[365821949,1749939035013,-1461.13,0.00021917,4]
[365821950,1749939035025,-430.71893555,0.00021917,4]
[365821951,1749939035036,-470.0,0.00021917,4]
[365821952,1749939035047,-460.0,0.00021917,4]
[365821953,1749939035059,-400.35283466,0.00021917,4]
[365821954,1749939035070,-460.0,0.00021917,4]
[365821955,1749939035084,-430.36258731,0.00021917,4]
[365821956,1749939035096,-460.0,0.00021917,4]
[365821957,1749939035107,-460.0,0.00021917,4]
[365821958,1749939035119,-460.0,0.00021917,4]
[365821959,1749939035131,-460.0,0.00021917,4]
[365821960,1749939035141,-460.0,0.00021917,4]
[365821961,1749939035153,-460.0,0.00021917,4]
[365821962,1749939035163,-460.0,0.00021917,4]
[365821963,1749939035174,-460.0,0.00021917,4]
[365821964,1749939035185,-460.0,0.00021917,4]
[365821965,1749939035196,-430.0,0.00021917,4]
[365821966,1749939035206,-460.0,0.00021917,4]
[365821967,1749939035217,-460.0,0.00021917,4]
[365821968,1749939035228,-400.0,0.00021917,4]
[365821969,1749939035239,-430.0,0.00021917,4]
[365821970,1749939035248,-460.0,0.00021917,4]
[365821971,1749939035257,-430.0,0.00021917,4]
[365821972,1749939035266,-460.0,0.00021917,4]
[365821973,1749939035451,-390.0,0.00021917,4]
[365821974,1749939035463,-415.69184283,0.00021917,4]
[365821975,1749939035473,-460.0,0.00021917,4]
[365821976,1749939035482,-460.0,0.00021917,4]
[365821977,1749939035491,-460.0,0.00021917,4]
[365821978,1749939035708,-430.0,0.00021917,4]
[365821979,1749939035720,-460.0,0.00021917,4]
[365821980,1749939035730,-655.98,0.00021917,4]
[365821981,1749939035739,-430.0,0.00021917,4]
[365821982,1749939035749,-430.0,0.00021917,4]
[365821983,1749939035761,-460.0,0.00021917,4]
[365821984,1749939035773,-400.0,0.00021917,4]
[365821985,1749939035782,-460.0,0.00021917,4]
[365821986,1749939035791,-430.0,0.00021917,4]
[365821987,1749939035801,-460.0,0.00021917,4]
[365821988,1749939035810,-460.0,0.00021917,4]
[365821989,1749939035819,-390.0,0.00021917,4]
[365821990,1749939035829,-460.0,0.00021917,4]
[365821991,1749939035838,-460.0,0.00021917,4]
[365821992,1749939035847,-460.0,0.00021917,4]
[365821993,1749939035857,-460.0,0.00021917,4]
[365821994,1749939035867,-460.0,0.00021917,4]
[365821995,1749939035876,-430.0,0.00021917,4]
[365821996,1749939035887,-460.0,0.00021917,4]
[365821997,1749939035897,-460.0,0.00021917,4]
[365821998,1749939035906,-460.0,0.00021917,4]
[365821999,1749939035915,-460.0,0.00021917,4]
[365822000,1749939035924,-460.0,0.00021917,4]
[365822001,1749939035936,-181.89869859,0.00021917,4]
[365822002,1749939035945,-460.0,0.00021917,4]
[365822003,1749939035954,-430.0,0.00021917,4]
[365822004,1749939035964,-460.0,0.00021917,4]
[365822005,1749939035974,-430.0,0.00021917,4]
[365822006,1749939035984,-460.0,0.00021917,4]
[365822007,1749939035994,-163.87001257,0.00021917,4]
[365822008,1749939036004,-460.0,0.00021917,4]
[365822009,1749939036014,-578.32559906,0.00021917,4]
[365822010,1749939036024,-460.0,0.00021917,4]
[365822011,1749939036035,-460.0,0.00021917,4]
[365822012,1749939036045,-460.0,0.00021917,4]
[365822013,1749939036054,-430.0,0.00021917,4]
[365822014,1749939036063,-430.0,0.00021917,4]
[365822015,1749939036073,-450.0,0.00021917,4]
[365822016,1749939036087,-460.0,0.00021917,4]
[365822017,1749939036096,-300.0,0.00021917,4]
[365822018,1749939036105,-460.0,0.00021917,4]
[365822019,1749939036115,-400.0,0.00021917,4]
[365822020,1749939036126,-430.0,0.00021917,4]
[365822021,1749939036135,-460.0,0.00021917,4]
[365822022,1749939036144,-430.0,0.00021917,4]
[365822023,1749939036154,-460.0,0.00021917,4]
[365822024,1749939036165,-460.0,0.00021917,4]
[365822025,1749939036174,-202.51494458,0.00021917,4]
[365822026,1749939036183,-460.0,0.00021917,4]
[365822027,1749939036193,-400.0,0.00021917,4]
[365822028,1749939036201,-400.0,0.00021917,4]
[365822029,1749939036210,-430.0,0.00021917,4]
[365822030,1749939036219,-430.0,0.00021917,4]
[365822031,1749939036229,-460.0,0.00021917,4]
[365822032,1749939036239,-460.0,0.00021917,4]
[365822033,1749939036250,-460.0,0.00021917,4]
[365822034,1749939036259,-460.0,0.00021917,4]
[365822035,1749939036268,-460.0,0.00021917,4]
[365822036,1749939036279,-430.0,0.00021917,4]
[365822037,1749939036289,-450.0,0.00021917,4]
[365822038,1749939036301,-430.0,0.00021917,4]
[365822039,1749939036311,-430.0,0.00021917,4]
[365822040,1749939036321,-430.0,0.00021917,4]
[365822041,1749939036332,-460.0,0.00021917,4]
[365822042,1749939036341,-400.0,0.00021917,4]
[365822043,1749939036351,-430.0,0.00021917,4]
[365822044,1749939036360,-442.88155273,0.00021917,4]
[365822045,1749939036369,-457.62420644,0.00021917,4]
[365822046,1749939036377,-430.0,0.00021917,4]
[365822047,1749939036388,-182.21852995,0.00021917,4]
[365822048,1749939036397,-430.0,0.00021917,4]
[365822049,1749939036407,-380.0,0.00021917,4]
[365822050,1749939036416,-330.172726,0.00021917,4]
[365822051,1749939036424,-430.0,0.00021917,4]
[365822052,1749939036433,-210.0,0.00021917,4]
[365822053,1749939036443,-430.0,0.00021917,4]
[365822054,1749939036452,-460.0,0.00021917,4]
[365822055,1749939036460,-460.0,0.00021917,4]
[365822056,1749939036468,-460.0,0.00021917,4]
[365822057,1749939036477,-460.0,0.00021917,4]
[365822058,1749939036486,-460.0,0.00021917,4]
[365822059,1749939036496,-460.0,0.00021917,4]
[365822060,1749939036505,-460.0,0.00021917,4]
[365822061,1749939036514,-450.0,0.00021917,4]
[365822062,1749939036523,-460.0,0.00021917,4]
[365822063,1749939036532,-507.80841923,0.00021917,4]
[365822064,1749939036542,-460.0,0.00021917,4]
[365822065,1749939036552,-600.6009728,0.00021917,4]
[365822066,1749939036561,-460.0,0.00021917,4]
[365822067,1749939036570,-460.0,0.00021917,4]
[365822068,1749939036579,-490.0,0.00021917,4]
[365822069,1749939036591,-460.0,0.00021917,4]
[365822070,1749939036600,-460.0,0.00021917,4]
[365822071,1749939036610,-1596.72,0.00021917,4]
[365822072,1749939036619,-460.0,0.00021917,4]
[365822073,1749939036628,-453.01389835,0.00021917,4]
[365822074,1749939036637,-460.0,0.00021917,4]
[365822075,1749939036647,-460.0,0.00021917,4]
[365822076,1749939036656,-451.54747245,0.00021917,4]
[365822077,1749939036665,-254.24140973,0.00021917,4]
[365822078,1749939036674,-403.77683967,0.00021917,4]
[365822079,1749939036683,-430.0,0.00021917,4]
[365822080,1749939036693,-460.0,0.00021917,4]
[365822081,1749939036702,-430.0,0.00021917,4]
[365822082,1749939036712,-430.0,0.00021917,4]
[365822083,1749939036722,-453.67607203,0.00021917,4]
[365822084,1749939036732,-460.0,0.00021917,4]
[365822085,1749939036741,-430.0,0.00021917,4]
[365822086,1749939036752,-460.0,0.00021917,4]
[365822087,1749939036763,-430.0,0.00021917,4]
[365822088,1749939036773,-544.93140379,0.00021917,4]
[365822089,1749939036784,-440.0,0.00021917,4]
[365822090,1749939036798,-578.05,0.00021917,4]
[365822091,1749939036810,-430.0,0.00021917,4]
[365822092,1749939036820,-430.0,0.00021917,4]
[365822093,1749939036830,-460.0,0.00021917,4]
[365822094,1749939036839,-500.0,0.00021917,4]
[365822095,1749939036848,-500.0,0.00021917,4]
[365822096,1749939036858,-3609.07,0.00021917,4]
[365822097,1749939036867,-500.0,0.00021917,4]
[365822098,1749939036877,-460.0,0.00021917,4]
[365822099,1749939036887,-430.0,0.00021917,4]
[365822100,1749939036896,-495.06402405,0.00021917,4]
[365822101,1749939036906,-460.0,0.00021917,4]
[365822102,1749939036915,-430.0,0.00021917,4]
[365822103,1749939036925,-430.48011042,0.00021917,4]
[365822104,1749939036934,-460.0,0.00021917,4]
[365822105,1749939036943,-232.29738534,0.00021917,4]
[365822106,1749939036952,-464.19,0.00021917,4]
[365822107,1749939036962,-289.44033199,0.00021917,4]
[365822108,1749939036972,-460.0,0.00021917,4]
[365822109,1749939036982,-500.0,0.00021917,4]
[365822110,1749939036992,-500.0,0.00021917,4]
[365822111,1749939037002,-357.14965469,0.00021917,4]
[365822112,1749939037013,-500.0,0.00021917,4]
[365822113,1749939037023,-500.0,0.00021917,4]
[365822114,1749939037033,-500.0,0.00021917,4]
[365822115,1749939037042,-186.7,0.00021917,4]
[365822116,1749939037051,-543.7,0.00021917,4]
[365822117,1749939037061,-460.0,0.00021917,4]
[365822118,1749939037070,-302.19687374,0.00021917,4]
[365822119,1749939037084,-460.0,0.00021917,4]
[365822120,1749939037094,-460.0,0.00021917,4]
[365822121,1749939037103,-462.24,0.00021917,4]
[365822122,1749939037112,-267.1013205,0.00021917,4]
[365822123,1749939037122,-460.0,0.00021917,4]
[365822124,1749939037132,-460.0,0.00021917,4]
[365822125,1749939037142,-1251.1,0.00021917,4]
[365822126,1749939037153,-460.0,0.00021917,4]
[365822127,1749939037163,-460.0,0.00021917,4]
[365822128,1749939037172,-460.0,0.00021917,4]
[365822129,1749939037182,-460.0,0.00021917,4]
[365822130,1749939037191,-960.25,0.00021917,4]
[365822131,1749939037200,-194.74946039,0.00021917,4]
[365822132,1749939037209,-460.0,0.00021917,4]
[365822133,1749939037218,-460.0,0.00021917,4]
[365822134,1749939037228,-460.0,0.00021917,4]
[365822135,1749939037237,-420.0,0.00021917,4]
[365822136,1749939037246,-460.0,0.00021917,4]
[365822137,1749939037255,-460.0,0.00021917,4]
[365822138,1749939037265,-460.0,0.00021917,4]
[365822139,1749939037274,-460.0,0.00021917,4]
[365822140,1749939037284,-500.0,0.00021917,4]
[365822141,1749939037293,-450.71705241,0.00021917,4]
[365822142,1749939037303,-460.0,0.00021917,4]
[365822143,1749939037312,-460.0,0.00021917,4]
[365822144,1749939037322,-460.0,0.00021917,4]
[365822145,1749939037331,-460.0,0.00021917,4]
[365822146,1749939037341,-450.0,0.00021917,4]
[365822147,1749939037350,-460.0,0.00021917,4]
[365822148,1749939037359,-460.0,0.00021917,4]
[365822149,1749939037369,-460.0,0.00021917,4]
[365822150,1749939037378,-464.0305847,0.00021917,4]
[365822151,1749939037387,-460.0,0.00021917,4]
[365822152,1749939037396,-423.0692736,0.00021917,4]
[365822153,1749939037406,-451.07285752,0.00021917,4]
[365822154,1749939037415,-460.0,0.00021917,4]
[365822155,1749939037425,-460.0,0.00021917,4]
[365822156,1749939037435,-460.0,0.00021917,4]
[365822157,1749939037444,-410.0,0.00021917,4]
[365822158,1749939037453,-544.09,0.00021917,4]
[365822159,1749939037463,-460.0,0.00021917,4]
[365822160,1749939037472,-460.0,0.00021917,4]
[365822161,1749939037482,-820.18,0.00021917,4]
[365822162,1749939037492,-258.14188809,0.00021917,4]
[365822163,1749939037502,-1251.04,0.00021917,4]
[365822164,1749939037512,-460.0,0.00021917,4]
[365822165,1749939037522,-1083.91,0.00021917,4]
[365822166,1749939037531,-460.0,0.00021917,4]
[365822167,1749939037541,-460.0,0.00021917,4]
[365822168,1749939037550,-460.0,0.00021917,4]
[365822169,1749939037560,-632.58,0.00021917,4]
[365822170,1749939037573,-430.0,0.00021917,4]
[365822171,1749939037583,-970.04,0.00021917,4]
[365822172,1749939037592,-460.0,0.00021917,4]
[365822173,1749939037602,-260.73047115,0.00021917,4]
[365822174,1749939037611,-460.0,0.00021917,4]
[365822175,1749939037620,-460.0,0.00021917,4]
[365822176,1749939037629,-460.0,0.00021917,4]
[365822177,1749939037640,-460.0,0.00021917,4]
[365822178,1749939037650,-619.1,0.00021917,4]
[365822179,1749939037659,-649.91,0.00021917,4]
[365822180,1749939037669,-460.0,0.00021917,4]
[365822181,1749939037678,-3762.74,0.00021917,4]
[365822182,1749939037688,-460.0,0.00021917,4]
[365822183,1749939037698,-420.0,0.00021917,4]
[365822184,1749939037707,-460.0,0.00021917,4]
[365822185,1749939037717,-633.71,0.00021917,4]
[365822186,1749939037727,-460.0,0.00021917,4]
[365822187,1749939037737,-460.0,0.00021917,4]
[365822188,1749939037747,-3111.58,0.00021917,4]
[365822189,1749939037757,-430.0,0.00021917,4]
[365822190,1749939037767,-460.0,0.00021917,4]
[365822191,1749939037776,-1029.64,0.00021917,4]
[365822192,1749939037787,-373.40046115,0.00021917,4]
[365822193,1749939037796,-460.0,0.00021917,4]
[365822194,1749939037806,-460.0,0.00021917,4]
[365822195,1749939037815,-3961.74,0.00021917,4]
[365822196,1749939037824,-410.0,0.00021917,4]
[365822197,1749939037835,-539.6748547,0.00021917,4]
[365822198,1749939037844,-450.0,0.00021917,4]
[365822199,1749939037854,-500.77010991,0.00021917,4]
[365822200,1749939037864,-460.0,0.00021917,4]
[365822201,1749939037874,-460.0,0.00021917,2]
[365822202,1749939037888,-460.0,0.00021917,4]
[365822203,1749939037897,-460.0,0.00021917,4]
[365822204,1749939037907,-1087.41,0.00021917,4]
[365822206,1749939037916,-430.0,0.00021917,4]
[365822207,1749939037926,-4248.13,0.00021917,4]
[365822208,1749939037936,-460.0,0.00021917,4]
[365822209,1749939037945,-460.0,0.00021917,4]
[365822210,1749939037954,-420.0,0.00021917,4]
[365822211,1749939037964,-1603.67,0.00021917,4]
[365822212,1749939037974,-400.63354523,0.00021917,4]
[365822213,1749939037984,-420.0,0.00021917,4]
[365822214,1749939037994,-431.64006525,0.00021917,4]
[365822215,1749939038003,-460.0,0.00021917,4]
[365822216,1749939038013,-460.0,0.00021917,4]
[365822217,1749939038022,-460.0,0.00021917,4]
[365822219,1749939038032,-4769.05,0.00021917,4]
[365822221,1749939038041,-460.0,0.00021917,4]
[365822223,1749939038051,-966.3,0.00021917,4]
[365822225,1749939038060,-430.0,0.00021917,4]
[365822226,1749939038075,-460.0,0.00021917,4]
[365822228,1749939038088,-460.0,0.00021917,4]
[365822230,1749939038099,-460.0,0.00021917,4]
[365822233,1749939038109,-460.0,0.00021917,4]
[365822235,1749939038119,-460.0,0.00021917,4]
[365822237,1749939038128,-460.0,0.00021917,4]
[365822240,1749939038139,-376.91681944,0.00021917,4]
[365822243,1749939038148,-460.0,0.00021917,4]
[365822245,1749939038159,-420.0,0.00021917,4]
[365822247,1749939038169,-417.01898805,0.00021917,4]
[365822249,1749939038178,-460.0,0.00021917,4]
[365822251,1749939038187,-460.0,0.00021917,4]
[365822252,1749939038199,-460.0,0.00021917,4]
[365822254,1749939038209,-460.0,0.00021917,4]
[365822256,1749939038220,-460.0,0.00021917,4]
[365822258,1749939038229,-460.0,0.00021917,4]
[365822260,1749939038238,-515.04225929,0.00021917,4]
[365822262,1749939038248,-3929.14,0.00021917,4]
[365822264,1749939038257,-460.0,0.00021917,4]
[365822266,1749939038266,-770.14,0.00021917,4]
[365822268,1749939038275,-460.0,0.00021917,4]
[365822270,1749939038285,-450.0,0.00021917,4]
[365822272,1749939038294,-460.0,0.00021917,4]
[365822274,1749939038304,-460.0,0.00021917,4]
[365822276,1749939038313,-2922.73,0.00021917,4]
[365822278,1749939038323,-628.09,0.00021917,4]
[365822280,1749939038332,-430.0,0.00021917,4]
[365822282,1749939038342,-420.0,0.00021917,4]
[365822284,1749939038351,-460.0,0.00021917,4]
[365822286,1749939038360,-460.0,0.00021917,4]
[365822288,1749939038370,-460.0,0.00021917,4]
[365822290,1749939038379,-460.0,0.00021917,4]
[365822292,1749939038390,-460.0,0.00021917,4]
[365822294,1749939038400,-440.0,0.00021917,4]
[365822296,1749939038409,-460.0,0.00021917,4]
[365822298,1749939038418,-460.0,0.00021917,4]
[365822300,1749939038427,-1326.08,0.00021917,4]
[365822303,1749939038437,-3126.37,0.00021917,4]
[365822305,1749939038447,-651.15,0.00021917,4]
[365822306,1749939038456,-460.0,0.00021917,4]
[365822309,1749939038466,-460.0,0.00021917,4]
[365822311,1749939038476,-460.0,0.00021917,4]
[365822313,1749939038485,-575.03264998,0.00021917,4]
[365822314,1749939038494,-460.0,0.00021917,4]
[365822316,1749939038503,-1826.92,0.00021917,4]
[365822318,1749939038513,-460.0,0.00021917,4]
[365822320,1749939038522,-1748.36,0.00021917,4]
[365822321,1749939038532,-470.0,0.00021917,4]
[365822322,1749939038542,-846.99,0.00021917,4]
[365822323,1749939038551,-470.0,0.00021917,4]
[365822324,1749939038561,-400.0,0.00021917,4]
[365822325,1749939038570,-683.27,0.00021917,4]
[365822326,1749939038580,-430.0,0.00021917,4]
[365822327,1749939038591,-430.0,0.00021917,4]
[365822328,1749939038600,-460.0,0.00021917,4]
[365822329,1749939038609,-440.0,0.00021917,4]
[365822330,1749939038619,-460.0,0.00021917,4]
[365822331,1749939038628,-1454.28,0.00021917,4]
[365822332,1749939038638,-460.0,0.00021917,4]
[365822333,1749939038648,-460.0,0.00021917,4]
[365822334,1749939038658,-460.0,0.00021917,4]
[365822335,1749939038667,-1439.56,0.00021917,4]
[365822336,1749939038676,-460.0,0.00021917,4]
[365822337,1749939038805,-460.0,0.00021917,4]
[365822338,1749939038815,-500.0,0.00021973,2]
[365822339,1749939038825,-161.91207021,0.00021973,2]
[365822340,1749939038835,-502.54510708,0.00021973,2]
[365822341,1749939038846,-1077.20279651,0.00022003,6]
[365822342,1749939038855,-1077.20279651,0.00022107,6]
[365822343,1749939038865,-487.83526815,0.00022173,2]
[365822344,1749939038874,-500.0,0.00022173,2]
[365822345,1749939038884,-500.0,0.00022173,2]
[365822346,1749939038894,-396.68944584,0.00022173,2]
[365822347,1749939038903,-500.0,0.00022173,2]
[365822348,1749939038913,-293.457855,0.00022173,2]
[365822349,1749939038922,-502.25716102,0.00022173,2]
[365822350,1749939038932,-500.0,0.00022173,2]
[365822351,1749939038942,-500.0,0.00022173,2]
[365822352,1749939038952,-500.60381911,0.00022173,2]
[365822353,1749939038962,-607.72295623,0.00022173,2]
[365822354,1749939038972,-500.0,0.00022173,2]
[365822355,1749939038982,-479.64270312,0.00022173,2]
[365822356,1749939038991,-500.0,0.00022173,2]
[365822357,1749939039001,-645.84577878,0.00022173,2]
[365822358,1749939039011,-340.0,0.00022191,4]
[365822359,1749939039021,-355.26542395,0.00022191,4]
[365822360,1749939039030,-430.0,0.00022191,4]
[365822361,1749939039039,-430.0,0.00022191,4]
[365822362,1749939039049,-460.0,0.00022191,4]
[365822363,1749939039059,-400.0,0.00022191,4]
[365822364,1749939039068,-460.0,0.00022191,4]
[365822365,1749939039081,-440.0,0.00022191,4]
[365822366,1749939039090,-460.0,0.00022191,4]
[365822367,1749939039100,-430.0,0.00022191,4]
[365822368,1749939039109,-384.69145368,0.00022191,4]
[365822369,1749939039119,-460.0,0.00022191,4]
[365822370,1749939039128,-460.0,0.00022191,4]
[365822371,1749939039139,-420.0,0.00022191,4]
[365822372,1749939039149,-460.0,0.00022191,4]
[365822373,1749939039158,-460.0,0.00022191,4]
[365822374,1749939039167,-423.74075566,0.00022191,4]
[365822375,1749939039176,-422.30312318,0.00022191,4]
[365822376,1749939039186,-460.0,0.00022191,4]
[365822377,1749939039195,-460.0,0.00022191,4]
[365822378,1749939039204,-400.0,0.00022191,4]
[365822379,1749939039214,-400.0,0.00022191,4]
[365822380,1749939039223,-460.0,0.00022191,4]
[365822381,1749939039232,-440.0,0.00022191,4]
[365822382,1749939039241,-460.0,0.00022191,4]
[365822383,1749939039250,-238.64535147,0.00022191,4]
[365822384,1749939039259,-400.0,0.00022191,4]
[365822385,1749939039268,-340.0,0.00022191,4]
[365822386,1749939039278,-460.0,0.00022191,4]
[365822387,1749939039288,-340.0,0.00022191,4]
[365822388,1749939039297,-460.0,0.00022191,4]
[365822389,1749939039306,-600.0,0.00022191,4]
[365822390,1749939039315,-694.44,0.00022191,4]
[365822391,1749939039324,-460.0,0.00022191,4]
[365822392,1749939039334,-420.0,0.00022191,4]
[365822393,1749939039343,-460.0,0.00022191,4]
[365822394,1749939039352,-400.0,0.00022191,4]
[365822395,1749939039362,-460.0,0.00022191,4]
[365822396,1749939039372,-460.0,0.00022191,2]
[365822397,1749939039381,-460.0,0.00022191,4]
[365822398,1749939039391,-460.0,0.00022191,4]
[365822399,1749939039400,-250.0,0.00022191,4]
[365822400,1749939039409,-360.0,0.00022191,4]
[365822401,1749939039419,-460.0,0.00022191,4]
[365822402,1749939039428,-370.0,0.00022191,4]
[365822403,1749939039438,-434.04713032,0.00022191,4]
[365822404,1749939039447,-396.46840548,0.00022191,4]
[365822405,1749939039456,-400.0,0.00022191,4]
[365822406,1749939039466,-360.0,0.00022191,4]
[365822407,1749939039475,-451.65358283,0.00022191,4]
[365822408,1749939039484,-460.0,0.00022191,4]
[365822409,1749939039494,-360.0,0.00022191,4]
[365822410,1749939039503,-460.0,0.00022191,4]
[365822411,1749939039512,-460.0,0.00022191,4]
[365822412,1749939039521,-460.0,0.00022191,4]
[365822413,1749939039531,-350.0,0.00022191,4]
[365822414,1749939039541,-460.0,0.00022191,4]
[365822415,1749939039550,-500.0,0.00022191,4]
[365822416,1749939039559,-460.0,0.00022191,4]
[365822417,1749939039569,-460.0,0.00022191,4]
[365822418,1749939039579,-460.0,0.00022191,4]
[365822419,1749939039588,-460.0,0.00022191,4]
[365822420,1749939039597,-400.0,0.00022191,4]
[365822421,1749939039607,-360.0,0.00022191,4]
[365822422,1749939039616,-460.0,0.00022191,4]
[365822423,1749939039625,-400.0,0.00022191,4]
[365822424,1749939039634,-400.0,0.00022191,4]
[365822425,1749939039644,-460.0,0.00022191,4]
[365822426,1749939039653,-400.0,0.00022191,4]
[365822427,1749939039663,-460.0,0.00022191,4]
[365822428,1749939039672,-460.0,0.00022191,4]
[365822429,1749939039682,-460.0,0.00022191,4]
[365822430,1749939039691,-460.0,0.00022191,4]
[365822431,1749939039700,-460.0,0.00022191,4]
[365822432,1749939039710,-460.0,0.00022191,4]
[365822433,1749939039719,-460.0,0.00022191,4]
[365822434,1749939039728,-460.0,0.00022191,4]
[365822435,1749939039737,-460.0,0.00022191,4]
[365822436,1749939039747,-460.0,0.00022191,4]
[365822437,1749939039757,-400.0,0.00022191,4]
[365822438,1749939039766,-460.0,0.00022191,4]
[365822439,1749939039776,-400.0,0.00022191,4]
[365822440,1749939039785,-460.0,0.00022191,4]
[365822441,1749939039794,-400.0,0.00022191,4]
[365822442,1749939039804,-460.0,0.00022191,4]
[365822443,1749939039813,-460.0,0.00022191,4]
[365822444,1749939039822,-460.0,0.00022191,4]
[365822445,1749939039832,-1461.13,0.00022191,4]
[365822446,1749939039841,-400.0,0.00022191,4]
[365822447,1749939039851,-460.0,0.00022191,4]
[365822448,1749939039860,-400.0,0.00022191,4]
[365822449,1749939039869,-460.0,0.00022191,4]
[365822450,1749939039879,-536.81607004,0.00022191,4]
[365822451,1749939039889,-546.35867665,0.00022191,4]
[365822452,1749939039898,-160.59198721,0.00022191,4]
[365822453,1749939039908,-460.0,0.00022191,4]
[365822454,1749939039917,-370.0,0.00022191,4]
[365822455,1749939039927,-460.0,0.00022191,4]
[365822457,1749939039936,-400.0,0.00022191,4]
[365822458,1749939039946,-460.0,0.00022191,4]
[365822459,1749939039955,-400.0,0.00022191,4]
[365822460,1749939039965,-164.52727387,0.00022191,4]
[365822461,1749939039974,-460.0,0.00022191,4]
[365822462,1749939039984,-460.0,0.00022191,4]
[365822463,1749939039994,-200.64736513,0.00022191,4]
[365822464,1749939040004,-400.0,0.00022191,4]
[365822465,1749939040013,-460.0,0.00022191,4]
[365822466,1749939040023,-655.98,0.00022191,4]
[365822467,1749939040032,-460.0,0.00022191,4]
[365822468,1749939040041,-460.0,0.00022191,4]
[365822469,1749939040051,-400.0,0.00022191,4]
[365822470,1749939040060,-460.0,0.00022191,4]
[365822471,1749939040070,-460.0,0.00022191,4]
[365822472,1749939040082,-400.0,0.00022191,4]
[365822473,1749939040092,-356.66,0.00022191,4]
[365822474,1749939040101,-460.0,0.00022191,4]
[365822475,1749939040111,-460.0,0.00022191,4]
[365822476,1749939040121,-400.0,0.00022191,4]
[365822477,1749939040131,-400.0,0.00022191,4]
[365822478,1749939040142,-460.0,0.00022191,4]
[365822479,1749939040152,-400.0,0.00022191,4]
[365822480,1749939040162,-400.0,0.00022191,4]